fUSD/lending_fUSD_20260616
["ID","MTS","AMOUNT","RATE_DAILY","PERIOD"]
[425132465,1781542201000,-500.0,0.00035161,30]
[425132464,1781542201000,-151.0,0.00035161,30]
[425132467,1781542201000,-157.29309396,0.00035161,30]
[425132466,1781542201000,-160.70116371,0.00035161,30]
[425132468,1781542201000,-520.0,0.00035161,30]
[425132472,1781542201000,-151.0,0.00035161,30]
[425132470,1781542201000,-1000.0,0.00035161,30]
[425132480,1781542201000,-3629.5,0.00035161,30]
[425132478,1781542201000,-166.67896326,0.00035161,30]
[425132479,1781542201000,-174.61919141,0.00035161,30]
[425132477,1781542201000,-151.0,0.00035161,30]
[425132469,1781542201000,-151.28403746,0.00035161,30]
[425132475,1781542201000,-156.587,0.00035161,30]
[425132474,1781542201000,-152.0,0.00035161,30]
[425132473,1781542201000,-7142.856,0.00035161,30]
[425132471,1781542201000,-154.67963625,0.00035161,30]
[425132476,1781542201000,-151.0,0.00035161,30]
[425132490,1781542202000,-1000.0,0.00035161,30]
[425132483,1781542202000,-200.0,0.00035161,30]
[425132482,1781542202000,-151.0,0.00035161,30]
[425132484,1781542202000,-168.3888056,0.00035161,30]
[425132485,1781542202000,-151.0,0.00035161,30]
[425132486,1781542202000,-500.0,0.00035161,30]
[425132487,1781542202000,-157.29309396,0.00035161,30]
[425132488,1781542202000,-151.28403746,0.00035161,30]
[425132489,1781542202000,-500.0,0.00035161,30]
[425132481,1781542202000,-155.04060098,0.00035161,30]
[425132491,1781542202000,-160.0,0.00035161,30]
[425132493,1781542202000,-500.0,0.00035161,30]
[425132494,1781542202000,-154.67963625,0.00035161,30]
[425132496,1781542202000,-151.0,0.00035161,30]
[425132495,1781542202000,-151.0,0.00035161,30]
[425132498,1781542202000,-7407.141672,0.00035161,30]
[425132497,1781542202000,-539.24,0.00035161,30]
[425132500,1781542202000,-151.0,0.00035161,30]
[425132499,1781542202000,-162.380719,0.00035161,30]
[425132501,1781542202000,-181.08010149,0.00035161,30]
[425132502,1781542202000,-155.04060098,0.00035161,30]
[425132492,1781542202000,-156.587,0.00035161,30]
[425132512,1781542203000,-3763.7915,0.00035161,30]
[425132511,1781542203000,-151.0,0.00035161,30]
[425132510,1781542203000,-157.29309396,0.00035161,30]
[425132508,1781542203000,-151.28403746,0.00035161,30]
[425132503,1781542203000,-166.67896326,0.00035161,30]
[425132507,1781542203000,-200.0,0.00035161,30]
[425132506,1781542203000,-500.0,0.00035161,30]
[425132505,1781542203000,-152.0,0.00035161,30]
[425132504,1781542203000,-160.70116371,0.00035161,30]
[425132509,1781542203000,-151.0,0.00035161,30]
[425132513,1781542203000,-518.5,0.00035161,30]
[425132516,1781542203000,-151.0,0.00035161,30]
[425132517,1781542203000,-154.67963625,0.00035161,30]
[425132525,1781542203000,-151.0,0.00035161,30]
[425132522,1781542203000,-7681.20591386,0.00035161,30]
[425132524,1781542203000,-162.380719,0.00035161,30]
[425132523,1781542203000,-168.3888056,0.00035161,30]
[425132514,1781542203000,-160.0,0.00035161,30]
[425132520,1781542203000,-156.587,0.00035161,30]
[425132519,1781542203000,-174.61919141,0.00035161,30]
[425132518,1781542203000,-500.0,0.00035161,30]
[425132515,1781542203000,-1000.0,0.00035161,30]
[425132521,1781542203000,-151.0,0.00035161,30]
[425132533,1781542204000,-6000.0,0.00035161,30]
[425132526,1781542204000,-500.0,0.00035161,30]
[425132528,1781542204000,-187.78006524,0.00035161,30]
[425132527,1781542204000,-151.0,0.00035161,30]
[425132529,1781542204000,-155.04060098,0.00035161,30]
[425132530,1781542204000,-559.19188,0.00035161,30]
[425132532,1781542204000,-166.67896326,0.00035161,30]
[425132531,1781542204000,-160.70116371,0.00035161,30]
[425132534,1781542204000,-200.0,0.00035161,30]
[425132535,1781542204000,-500.0,0.00035161,30]
[425132536,1781542204000,-151.28403746,0.00035161,30]
[425132537,1781542204000,-157.29309396,0.00035161,30]
[425132546,1781542204000,-156.587,0.00035161,30]
[425132545,1781542204000,-151.0,0.00035161,30]
[425132543,1781542204000,-152.0,0.00035161,30]
[425132542,1781542204000,-500.0,0.00035161,30]
[425132547,1781542204000,-7965.41053267,0.00035161,30]
[425132540,1781542204000,-537.6845,0.00035161,30]
[425132541,1781542204000,-154.67963625,0.00035161,30]
[425132539,1781542204000,-191.69631648,0.00035161,30]
[425132538,1781542204000,-1000.0,0.00035161,30]
[425132544,1781542204000,-151.0,0.00035161,30]
[425132556,1781542205000,-166.67896326,0.00035161,30]
[425132548,1781542205000,-3903.0517855,0.00035161,30]
[425132549,1781542205000,-151.0,0.00035161,30]
[425132550,1781542205000,-151.0,0.00035161,30]
[425132551,1781542205000,-174.61919141,0.00035161,30]
[425132552,1781542205000,-162.380719,0.00035161,30]
[425132553,1781542205000,-194.72792766,0.00035161,30]
[425132555,1781542205000,-181.08010149,0.00035161,30]
[425132554,1781542205000,-155.040601,0.00035161,30]
[425132557,1781542205000,-160.70116371,0.00035161,30]
[425132560,1781542205000,-500.0,0.00035161,30]
[425132559,1781542205000,-200.0,0.00035161,30]
[425132570,1781542205000,-8260.13072238,0.00035161,30]
[425132562,1781542205000,-151.28403746,0.00035161,30]
[425132561,1781542205000,-151.0,0.00035161,30]
[425132565,1781542205000,-1000.0,0.00035161,30]
[425132563,1781542205000,-157.29309396,0.00035161,30]
[425132564,1781542205000,-557.5788265,0.00035161,30]
[425132566,1781542205000,-579.88197956,0.00035161,30]
[425132567,1781542205000,-500.0,0.00035161,30]
[425132569,1781542205000,-518.5,0.00035161,30]
[425132568,1781542205000,-4401.49220252,0.00035161,30]
[425132558,1781542205000,-168.3888056,0.00035161,30]
[425132579,1781542206000,-151.0,0.00035161,30]
[425132577,1781542206000,-151.0,0.00035161,30]
[425132578,1781542206000,-162.380719,0.00035161,30]
[425132575,1781542206000,-3804.51830814,0.00035161,30]
[425132583,1781542206000,-187.78006524,0.00035161,30]
[425132576,1781542206000,-166.67896326,0.00035161,30]
[425132573,1781542206000,-181.08010149,0.00035161,30]
[425132572,1781542206000,-151.0,0.00035161,30]
[425132571,1781542206000,-201.93286099,0.00035161,30]
[425132574,1781542206000,-500.0,0.00035161,30]
[425132580,1781542206000,-160.70116371,0.00035161,30]
[425132587,1781542206000,-1000.0,0.00035161,30]
[425132582,1781542206000,-168.3888056,0.00035161,30]
[425132584,1781542206000,-151.28403746,0.00035161,30]
[425132585,1781542206000,-578.20924308,0.00035161,30]
[425132586,1781542206000,-157.29309396,0.00035161,30]
[425132588,1781542206000,-174.61919141,0.00035161,30]
[425132589,1781542206000,-500.0,0.00035161,30]
[425132590,1781542206000,-151.0,0.00035161,30]
[425132591,1781542206000,-500.0,0.00035161,30]
[425132592,1781542206000,-601.3376128,0.00035161,30]
[425132593,1781542206000,-7481.42816187,0.00035161,30]
[425132581,1781542206000,-200.0,0.00035161,30]
[425132598,1781542207000,-200.0,0.00035161,30]
[425132597,1781542207000,-166.67896326,0.00035161,30]
[425132599,1781542207000,-160.70116371,0.00035161,30]
[425132595,1781542207000,-187.78006524,0.00035161,30]
[425132594,1781542207000,-151.0,0.00035161,30]
[425132596,1781542207000,-537.6845,0.00035161,30]
[425132601,1781542207000,-667.20112316,0.00035161,30]
[425132600,1781542207000,-500.0,0.00035161,30]
[425132602,1781542207000,-1000.0,0.00035161,30]
[425132604,1781542207000,-157.29309396,0.00035161,30]
[425132605,1781542207000,-152.0,0.00035161,30]
[425132606,1781542207000,-151.0,0.00035161,30]
[425132607,1781542207000,-168.3888056,0.00035161,30]
[425132608,1781542207000,-151.0,0.00035161,30]
[425132609,1781542207000,-174.61919141,0.00035161,30]
[425132603,1781542207000,-151.28403746,0.00035161,30]
[425132619,1781542208000,-200.0,0.00035161,30]
[425132618,1781542208000,-623.58710447,0.00035161,30]
[425132616,1781542208000,-500.0,0.00035161,30]
[425132617,1781542208000,-166.67896332,0.00035161,30]
[425132615,1781542208000,-151.0,0.00035161,30]
[425132611,1781542208000,-194.72792766,0.00035161,30]
[425132613,1781542208000,-181.08010149,0.00035161,30]
[425132612,1781542208000,-151.0,0.00035161,30]
[425132610,1781542208000,-500.0,0.00035161,30]
[425132614,1781542208000,-194.72792766,0.00035161,30]
[425132620,1781542208000,-160.70116371,0.00035161,30]
[425132622,1781542208000,-157.29309396,0.00035161,30]
[425132623,1781542208000,-151.28403746,0.00035161,30]
[425132624,1781542208000,-557.5788265,0.00035161,30]
[425132625,1781542208000,-500.0,0.00035161,30]
[425132627,1781542208000,-151.0,0.00035161,30]
[425132626,1781542208000,-152.0,0.00035161,30]
[425132628,1781542208000,-151.0,0.00035161,30]
[425132629,1781542208000,-151.0,0.00035161,30]
[425132630,1781542208000,-500.0,0.00035161,30]
[425132631,1781542208000,-174.61919141,0.00035161,30]
[425132632,1781542208000,-201.93286098,0.00035161,30]
[425132621,1781542208000,-1000.0,0.00035161,30]
[425132637,1781542209000,-157.29309396,0.00035161,30]
[425132639,1781542209000,-151.28403746,0.00035161,30]
[425132640,1781542209000,-1000.0,0.00035161,30]
[425132638,1781542209000,-151.0,0.00035161,30]
[425132641,1781542209000,-500.0,0.00035161,30]
[425132635,1781542209000,-201.93286098,0.00035161,30]
[425132634,1781542209000,-160.70116371,0.00035161,30]
[425132633,1781542209000,-181.08010149,0.00035161,30]
[425132643,1781542209000,-186.85568836,0.00035161,30]
[425132636,1781542209000,-187.78006524,0.00035161,30]
[425132642,1781542209000,-646.65982734,0.00035161,30]
[425132644,1781542209000,-578.20924308,0.00035161,30]
[425132646,1781542209000,-209.40437684,0.00035161,30]
[425132647,1781542209000,-500.0,0.00035161,30]
[425132649,1781542209000,-151.0,0.00035161,30]
[425132648,1781542209000,-160.70116377,0.00035161,30]
[425132650,1781542209000,-181.08010149,0.00035161,30]
[425132651,1781542209000,-152.0,0.00035161,30]
[425132652,1781542209000,-157.29309408,0.00035161,30]
[425132654,1781542209000,-151.2840376,0.00035161,30]
[425132653,1781542209000,-187.78006524,0.00035161,30]
[425132645,1781542209000,-151.0,0.00035161,30]
[425132655,1781542209000,-151.0,0.00035161,30]
[425132671,1781542210000,-670.58624095,0.00035161,30]
[425132664,1781542210000,-151.0,0.00035161,30]
[425132663,1781542210000,-500.0,0.00035161,30]
[425132662,1781542210000,-500.0,0.00035161,30]
[425132656,1781542210000,-752.79699085,0.00035161,30]
[425132661,1781542210000,-599.60298507,0.00035161,30]
[425132658,1781542210000,-151.0,0.00035161,30]
[425132659,1781542210000,-151.0,0.00035161,30]
[425132666,1781542210000,-152.0,0.00035161,30]
[425132657,1781542210000,-194.72792766,0.00035161,30]
[425132660,1781542210000,-217.15233878,0.00035161,30]
[425132665,1781542210000,-187.78006524,0.00035161,30]
[425132672,1781542210000,-201.932861,0.00035161,30]
[425132668,1781542210000,-151.0,0.00035161,30]
[425132669,1781542210000,-151.0,0.00035161,30]
[425132670,1781542210000,-341.1568785,0.00035161,30]
[425132674,1781542210000,-500.0,0.00035161,30]
[425132673,1781542210000,-151.0,0.00035161,30]
[425132676,1781542210000,-500.0,0.00035161,30]
[425132675,1781542210000,-500.0,0.00035161,30]
[425132678,1781542210000,-151.0,0.00035161,30]
[425132677,1781542210000,-621.78829552,0.00035161,30]
[425132679,1781542210000,-151.0,0.00035161,30]
[425132667,1781542210000,-194.72792766,0.00035161,30]
[425132687,1781542211000,-151.0,0.00035161,30]
[425132685,1781542211000,-695.39793187,0.00035161,30]
[425132688,1781542211000,-151.0,0.00035161,30]
[425132686,1781542211000,-500.0,0.00035161,30]
[425132689,1781542211000,-500.0,0.00035161,30]
[425132682,1781542211000,-201.93286099,0.00035161,30]
[425132683,1781542211000,-151.0,0.00035161,30]
[425132680,1781542211000,-194.72792766,0.00035161,30]
[425132681,1781542211000,-152.0,0.00035161,30]
[425132684,1781542211000,-500.0,0.00035161,30]
[425132690,1781542211000,-644.79446245,0.00035161,30]
[425132703,1781542211000,-151.0,0.00035161,30]
[425132693,1781542211000,-151.0,0.00035161,30]
[425132702,1781542211000,-152.0,0.00035161,30]
[425132701,1781542211000,-500.0,0.00035161,30]
[425132699,1781542211000,-668.65185756,0.00035161,30]
[425132700,1781542211000,-500.0,0.00035161,30]
[425132697,1781542211000,-151.0,0.00035161,30]
[425132691,1781542211000,-203.94557654,0.00035161,30]
[425132696,1781542211000,-500.0,0.00035161,30]
[425132695,1781542211000,-721.12765534,0.00035161,30]
[425132694,1781542211000,-500.0,0.00035161,30]
[425132692,1781542211000,-152.0,0.00035161,30]
[425132698,1781542211000,-151.0,0.00035161,30]
[425132715,1781542212000,-151.0,0.00035161,30]
[425132704,1781542212000,-500.0,0.00035161,30]
[425132706,1781542212000,-151.0,0.00035161,30]
[425132707,1781542212000,-151.0,0.00035161,30]
[425132708,1781542212000,-500.0,0.00035161,30]
[425132710,1781542212000,-151.0,0.00035161,30]
[425132709,1781542212000,-693.39197629,0.00035161,30]
[425132711,1781542212000,-500.0,0.00035161,30]
[425132713,1781542212000,-775.4783256,0.00035161,30]
[425132712,1781542212000,-152.0,0.00035161,30]
[425132714,1781542212000,-500.0,0.00035161,30]
[425132705,1781542212000,-747.80937859,0.00035161,30]
[425132716,1781542212000,-151.0,0.00035161,30]
[425132726,1781542212000,-151.0,0.00035161,30]
[425132727,1781542212000,-500.0,0.00035161,30]
[425132725,1781542212000,-151.0,0.00035161,30]
[425132723,1781542212000,-804.17102365,0.00035161,30]
[425132724,1781542212000,-500.0,0.00035161,30]
[425132717,1781542212000,-151.0,0.00035161,30]
[425132722,1781542212000,-151.0,0.00035161,30]
[425132720,1781542212000,-719.04747942,0.00035161,30]
[425132718,1781542212000,-500.0,0.00035161,30]
[425132719,1781542212000,-500.0,0.00035161,30]
[425132721,1781542212000,-152.0,0.00035161,30]
[425132739,1781542213000,-152.0,0.00035161,30]
[425132729,1781542213000,-745.65223615,0.00035161,30]
[425132731,1781542213000,-152.0,0.00035161,30]
[425132730,1781542213000,-151.0,0.00035161,30]
[425132732,1781542213000,-500.0,0.00035161,30]
[425132733,1781542213000,-833.92535152,0.00035161,30]
[425132734,1781542213000,-500.0,0.00035161,30]
[425132735,1781542213000,-151.0,0.00035161,30]
[425132736,1781542213000,-151.0,0.00035161,30]
[425132737,1781542213000,-500.0,0.00035161,30]
[425132728,1781542213000,-500.0,0.00035161,30]
[425132738,1781542213000,-773.24136889,0.00035161,30]
[425132740,1781542213000,-500.0,0.00035161,30]
[425132743,1781542213000,-151.0,0.00035161,30]
[425132742,1781542213000,-864.78058953,0.00035161,30]
[425132744,1781542213000,-500.0,0.00035161,30]
[425132746,1781542213000,-500.0,0.00035161,30]
[425132745,1781542213000,-500.0,0.00035161,30]
[425132748,1781542213000,-151.0,0.00035161,30]
[425132747,1781542213000,-896.77747134,0.00035161,30]
[425132750,1781542213000,-801.85129954,0.00035161,30]
[425132749,1781542213000,-500.0,0.00035161,30]
[425132741,1781542213000,-500.0,0.00035161,30]
[425132760,1781542214000,-151.0,0.00035161,30]
[425132758,1781542214000,-151.0,0.00035161,30]
[425132756,1781542214000,-500.0,0.00035161,30]
[425132759,1781542214000,-152.0,0.00035161,30]
[425132751,1781542214000,-500.0,0.00035161,30]
[425132755,1781542214000,-151.0,0.00035161,30]
[425132753,1781542214000,-929.95823778,0.00035161,30]
[425132752,1781542214000,-500.0,0.00035161,30]
[425132754,1781542214000,-152.0,0.00035161,30]
[425132761,1781542214000,-500.0,0.00035161,30]
[425132757,1781542214000,-831.51979762,0.00035161,30]
[425132763,1781542214000,-151.0,0.00035161,30]
[425132762,1781542214000,-862.28603014,0.00035161,30]
[425132772,1781542214000,-152.0,0.00035161,30]
[425132771,1781542214000,-1000.04826021,0.00035161,30]
[425132770,1781542214000,-500.0,0.00035161,30]
[425132768,1781542214000,-894.19061325,0.00035161,30]
[425132773,1781542214000,-500.0,0.00035161,30]
[425132767,1781542214000,-152.0,0.00035161,30]
[425132765,1781542214000,-964.36669258,0.00035161,30]
[425132766,1781542214000,-151.0,0.00035161,30]
[425132764,1781542214000,-500.0,0.00035161,30]
[425132769,1781542214000,-151.0,0.00035161,30]
[425132780,1781542215000,-961.58486558,0.00035161,30]
[425132774,1781542215000,-927.27566594,0.00035161,30]
[425132775,1781542215000,-151.0,0.00035161,30]
[425132776,1781542215000,-500.0,0.00035161,30]
[425132777,1781542215000,-1037.05004583,0.00035161,30]
[425132778,1781542215000,-152.0,0.00035161,30]
[425132779,1781542215000,-500.0,0.00035161,30]
[425132783,1781542215000,-151.0,0.00035161,30]
[425132782,1781542215000,-997.16350561,0.00035161,30]
[425132784,1781542215000,-500.0,0.00035161,30]
[425132785,1781542215000,-500.0,0.00035161,30]
[425132786,1781542215000,-10000.0,0.00035161,30]
[425132787,1781542215000,-10000.0,0.00035161,30]
[425132789,1781542215000,-5796783.8824,0.00035302,30]
[425132788,1781542215000,-2356.60457658,0.00035161,30]
[425132781,1781542215000,-151.0,0.00035161,30]
[425132799,1781542216000,-426.0,0.00035589,120]
[425132798,1781542216000,-1618.0,0.00035589,120]
[425132796,1781542216000,-1941.55733245,0.0003553,30]
[425132795,1781542216000,-165.9200044,0.00035527,60]
[425132791,1781542216000,-350.0,0.00035342,38]
[425132794,1781542216000,-260.31,0.0003546,69]
[425132792,1781542216000,-1093.22073678,0.00035402,120]
[425132790,1781542216000,-246.418389,0.00035339,120]
[425132793,1781542216000,-988.86627581,0.00035402,120]
[425132800,1781542216000,-2162.0,0.00035589,120]
[425132797,1781542216000,-1618.0,0.00035589,120]
[425132802,1781542216000,-1528.0,0.00035589,120]
[425132810,1781542216000,-1742.75,0.00035589,120]
[425132811,1781542216000,-1742.75,0.00035589,120]
[425132809,1781542216000,-1188.0,0.00035589,120]
[425132808,1781542216000,-1643.5,0.00035589,120]
[425132801,1781542216000,-1528.0,0.00035589,120]
[425132806,1781542216000,-1660.5,0.00035589,120]
[425132804,1781542216000,-1586.5,0.00035589,120]
[425132805,1781542216000,-1660.5,0.00035589,120]
[425132803,1781542216000,-1586.5,0.00035589,120]
[425132807,1781542216000,-1643.5,0.00035589,120]
[425132822,1781542217000,-633.84,0.000356,120]
[425132813,1781542217000,-1601.0,0.00035589,120]
[425132814,1781542217000,-1601.0,0.00035589,120]
[425132815,1781542217000,-2066.5,0.00035589,120]
[425132816,1781542217000,-2066.5,0.00035589,120]
[425132817,1781542217000,-2023.11055574,0.00035589,120]
[425132818,1781542217000,-1489.5,0.00035589,120]
[425132820,1781542217000,-2266.5,0.00035589,120]
[425132819,1781542217000,-1489.5,0.00035589,120]
[425132812,1781542217000,-1452.5,0.00035589,120]
[425132821,1781542217000,-633.84,0.000356,120]
[425132825,1781542217000,-3966.628,0.000356,120]
[425132824,1781542217000,-3966.628,0.000356,120]
[425132826,1781542217000,-3966.62,0.000356,120]
[425132827,1781542217000,-892.59,0.000356,120]
[425132828,1781542217000,-892.59,0.000356,120]
[425132829,1781542217000,-892.38,0.000356,120]
[425132831,1781542217000,-892.59,0.000356,120]
[425132830,1781542217000,-892.38,0.000356,60]
[425132832,1781542217000,-892.59,0.000356,30]
[425132833,1781542217000,-2382.37,0.000356,60]
[425132823,1781542217000,-1427.247,0.000356,30]
[425132842,1781542218000,-500.0,0.00035616,120]
[425132841,1781542218000,-2000.0,0.00035616,30]
[425132840,1781542218000,-1905.56818156,0.00035616,60]
[425132839,1781542218000,-2405.35,0.00035616,30]
[425132834,1781542218000,-2382.37,0.000356,120]
[425132837,1781542218000,-2993.62,0.000356,60]
[425132835,1781542218000,-2993.621,0.000356,60]
[425132843,1781542218000,-298.0,0.00035621,120]
[425132838,1781542218000,-616.0,0.00035616,120]
[425132844,1781542218000,-243.47449,0.00035643,120]
[425132836,1781542218000,-2993.621,0.000356,60]
[425132847,1781542218000,-284.59207089,0.00035803,120]
[425132855,1781542218000,-2000.0,0.000359,120]
[425132853,1781542218000,-2000.0,0.000359,120]
[425132854,1781542218000,-2000.0,0.000359,120]
[425132852,1781542218000,-2000.0,0.000359,120]
[425132845,1781542218000,-960.73,0.00035672,30]
[425132850,1781542218000,-12822.4029,0.000359,60]
[425132848,1781542218000,-2017.1,0.000359,60]
[425132849,1781542218000,-2017.1,0.000359,120]
[425132846,1781542218000,-2814.0,0.000358,120]
[425132851,1781542218000,-260.31,0.000359,98]
[425132864,1781542219000,-5000.0,0.00036,120]
[425132856,1781542219000,-1194.0,0.000359,120]
[425132857,1781542219000,-2000.0,0.000359,120]
[425132859,1781542219000,-800.0,0.000359,120]
[425132858,1781542219000,-2000.0,0.000359,120]
[425132860,1781542219000,-1941.55733245,0.00035904,30]
[425132861,1781542219000,-240.576233,0.00035947,120]
[425132862,1781542219000,-263.50145474,0.00036,120]
[425132863,1781542219000,-1334.0,0.00036,60]
[425132865,1781542219000,-700.0,0.00036,30]
[425132866,1781542219000,-600.0,0.00036,120]
[425132876,1781542219000,-909.03535916,0.00036,120]
[425132868,1781542219000,-589.74,0.00036,75]
[425132869,1781542219000,-312.23,0.00036,60]
[425132870,1781542219000,-5000.0,0.00036,60]
[425132872,1781542219000,-235.0,0.00036,30]
[425132871,1781542219000,-167.0,0.00036,120]
[425132874,1781542219000,-1000.0,0.00036,120]
[425132873,1781542219000,-471.0,0.00036,30]
[425132875,1781542219000,-860.91,0.00036,30]
[425132867,1781542219000,-613.959,0.00036,120]
[425132877,1781542219000,-400.0,0.00036,60]
[425132884,1781542220000,-2554.83280845,0.000361,30]
[425132883,1781542220000,-2554.83280846,0.000361,30]
[425132881,1781542220000,-988.86627581,0.00036087,120]
[425132885,1781542220000,-2554.83280845,0.000361,30]
[425132879,1781542220000,-1176.8,0.0003605,30]
[425132880,1781542220000,-150.0,0.00036069,120]
[425132878,1781542220000,-1171.74,0.0003605,30]
[425132882,1781542220000,-151.98334777,0.00036096,120]
[425132886,1781542220000,-8596.65209218,0.000361,30]
[425132888,1781542220000,-8596.65209217,0.000361,30]
[425132887,1781542220000,-8596.65209217,0.000361,30]
[425132897,1781542220000,-644.88,0.000362,120]
[425132894,1781542220000,-1433.3,0.000362,30]
[425132895,1781542220000,-1583.3989,0.000362,120]
[425132893,1781542220000,-1432.93,0.000362,30]
[425132896,1781542220000,-644.88,0.000362,30]
[425132892,1781542220000,-1432.93,0.000362,120]
[425132889,1781542220000,-383.0,0.00036164,100]
[425132890,1781542220000,-1432.59,0.000362,120]
[425132891,1781542220000,-1432.59,0.000362,120]
[425132906,1781542221000,-500.0,0.00036232,120]
[425132898,1781542221000,-957.6548,0.000362,120]
[425132899,1781542221000,-1769.709,0.000362,120]
[425132901,1781542221000,-1769.71,0.000362,120]
[425132900,1781542221000,-1769.709,0.000362,120]
[425132902,1781542221000,-163.2936167,0.00036232,120]
[425132903,1781542221000,-500.0,0.00036232,120]
[425132905,1781542221000,-500.0,0.00036232,120]
[425132904,1781542221000,-500.0,0.00036232,120]
[425132907,1781542221000,-694.5027743,0.00036232,120]
[425132908,1781542221000,-234.3139771,0.00036232,120]
[425132910,1781542221000,-237.723618,0.00036251,120]
[425132919,1781542221000,-100000.0,0.000365,60]
[425132915,1781542221000,-456997.0,0.000364,30]
[425132917,1781542221000,-253.17,0.00036438,120]
[425132916,1781542221000,-565.49,0.000364,120]
[425132918,1781542221000,-746672.315085,0.000365,30]
[425132914,1781542221000,-260.31,0.0003634,114]
[425132912,1781542221000,-2000.0,0.00036274,30]
[425132911,1781542221000,-12313.17,0.0003627,30]
[425132909,1781542221000,-218.25,0.00036232,120]
[425132913,1781542221000,-1941.55733245,0.00036278,30]
[425132928,1781542222000,-150.0,0.00036627,120]
[425132921,1781542222000,-500.0,0.00036518,60]
[425132920,1781542222000,-500.0,0.00036518,60]
[425132923,1781542222000,-150.0,0.00036529,120]
[425132922,1781542222000,-500.0,0.00036518,60]
[425132925,1781542222000,-350.0,0.00036557,41]
[425132924,1781542222000,-234.916645,0.00036555,120]
[425132927,1781542222000,-1367.6083,0.000366,60]
[425132926,1781542222000,-603.2478,0.00036587,30]
[425132930,1781542222000,-150.0,0.00036643,120]
[425132932,1781542222000,-634.48,0.000367,30]
[425132931,1781542222000,-1941.55733245,0.00036652,30]
[425132940,1781542222000,-1779.582,0.000367,60]
[425132939,1781542222000,-1779.582,0.000367,120]
[425132938,1781542222000,-2087.9048,0.000367,30]
[425132937,1781542222000,-345.9459,0.000367,30]
[425132929,1781542222000,-38025.25282755,0.0003664,50]
[425132936,1781542222000,-1811.88,0.000367,120]
[425132933,1781542222000,-634.48,0.000367,120]
[425132934,1781542222000,-1811.886,0.000367,120]
[425132941,1781542222000,-1779.58,0.000367,120]
[425132935,1781542222000,-1811.886,0.000367,120]
[425132950,1781542223000,-203.0,0.0003689,30]
[425132942,1781542223000,-988.86627581,0.00036772,120]
[425132944,1781542223000,-260.31,0.0003678,120]
[425132945,1781542223000,-12951.049,0.000368,120]
[425132947,1781542223000,-12951.049,0.000368,30]
[425132946,1781542223000,-12951.049,0.000368,30]
[425132948,1781542223000,-12951.05,0.000368,30]
[425132949,1781542223000,-232.155313,0.00036859,120]
[425132951,1781542223000,-800.0,0.000369,120]
[425132943,1781542223000,-1211.36118787,0.00036772,30]
[425132954,1781542223000,-500.0,0.00036986,120]
[425132952,1781542223000,-2000.0,0.00036959,30]
[425132956,1781542223000,-202.51,0.00036986,120]
[425132955,1781542223000,-1003.0,0.00036986,120]
[425132958,1781542223000,-662810.685624,0.00037,60]
[425132957,1781542223000,-500.0,0.00037,120]
[425132960,1781542223000,-1762.98408281,0.00037,120]
[425132959,1781542223000,-698.43721974,0.00037,120]
[425132961,1781542223000,-3182.5217667,0.00037,120]
[425132962,1781542223000,-6791.0,0.00037,120]
[425132953,1781542223000,-461.73,0.00036986,90]
[425132972,1781542224000,-471.0,0.00037,30]